[Event "Titled Tuesday Blitz September 21 2021"]
[White "Coto Mederos, Michel"]
[Black "Macovei, Andrei"]
[WhiteFideId "3508528"]
[BlackFideId "13904680"]
[WhiteElo "2427"]
[BlackElo "2389"]
[Result "0-1"]
[Round "05"]
[TimeControl "180+1"]
[Date "2021.09.21"]
[WhiteClock "0:00:11"]
[BlackClock "0:00:35"]

1. d4 {[%clk 0:03:00]}  Nf6 {[%clk 0:02:59]} 2. c4 {[%clk 0:02:59]}  e6 {[%clk 0:02:59]} 3. Nc3 {[%clk 0:02:59]}  Bb4 {[%clk 0:02:59]} 4. e3 {[%clk 0:02:59]}  O-O {[%clk 0:02:58]} 5. Bd3 {[%clk 0:02:58]}  d5 {[%clk 0:02:58]} 6. Ne2 {[%clk 0:02:57]}  c5 {[%clk 0:02:54]} 7. a3 {[%clk 0:02:56]}  Bxc3+ {[%clk 0:02:53]} 8. bxc3 {[%clk 0:02:57]}  dxc4 {[%clk 0:02:52]} 9. Bxc4 {[%clk 0:02:58]}  Qc7 {[%clk 0:02:51]} 10. Bd3 {[%clk 0:02:51]}  b6 {[%clk 0:02:50]} 11. e4 {[%clk 0:02:35]}  Ba6 {[%clk 0:02:48]} 12. f3 {[%clk 0:02:30]}  Rd8 {[%clk 0:02:39]} 13. O-O {[%clk 0:02:22]}  Bxd3 {[%clk 0:02:28]} 14. Qxd3 {[%clk 0:02:21]}  Nc6 {[%clk 0:02:28]} 15. Bg5 {[%clk 0:02:11]}  Qe7 {[%clk 0:02:20]} 16. Qb5 {[%clk 0:01:54]}  Qd7 {[%clk 0:02:04]} 17. dxc5 {[%clk 0:01:32]}  Ne5 {[%clk 0:01:57]} 18. c6 {[%clk 0:01:06]}  Nxc6 {[%clk 0:01:50]} 19. e5 {[%clk 0:01:06]}  a6 {[%clk 0:01:46]} 20. Qxb6 {[%clk 0:00:48]}  Nxe5 {[%clk 0:01:46]} 21. Bxf6 {[%clk 0:00:35]}  gxf6 {[%clk 0:01:46]} 22. Qe3 {[%clk 0:00:34]}  Qd3 {[%clk 0:01:40]} 23. Qf2 {[%clk 0:00:30]}  Rab8 {[%clk 0:01:38]} 24. Ra2 {[%clk 0:00:21]}  Qc4 {[%clk 0:01:35]} 25. Rc2 {[%clk 0:00:20]}  Kh8 {[%clk 0:01:23]} 26. Nd4 {[%clk 0:00:19]}  Nc6 {[%clk 0:01:18]} 27. Nxc6 {[%clk 0:00:17]}  Qxc6 {[%clk 0:01:19]} 28. Qh4 {[%clk 0:00:17]}  Kg7 {[%clk 0:01:14]} 29. Qg4+ {[%clk 0:00:16]}  Kf8 {[%clk 0:01:13]} 30. Qh4 {[%clk 0:00:17]}  Ke7 {[%clk 0:01:13]} 31. c4 {[%clk 0:00:17]}  Qc5+ {[%clk 0:01:12]} 32. Kh1 {[%clk 0:00:18]}  Rb3 {[%clk 0:01:06]} 33. Qxh7 {[%clk 0:00:16]}  Rxa3 {[%clk 0:01:05]} 34. Re1 {[%clk 0:00:16]}  Rad3 {[%clk 0:01:03]} 35. Rce2 {[%clk 0:00:15]}  R8d6 {[%clk 0:01:00]} 36. Rxe6+ {[%clk 0:00:14]}  Rxe6 {[%clk 0:00:59]} 37. Rxe6+ {[%clk 0:00:15]}  Kxe6 {[%clk 0:00:58]} 38. Qxd3 {[%clk 0:00:16]}  a5 {[%clk 0:00:58]} 39. Qe4+ {[%clk 0:00:15]}  Kd6 {[%clk 0:00:57]} 40. Qf4+ {[%clk 0:00:12]}  Qe5 {[%clk 0:00:51]} 41. Qd2+ {[%clk 0:00:12]}  Kc6 {[%clk 0:00:50]} 42. h4 {[%clk 0:00:09]}  a4 {[%clk 0:00:47]} 43. Qb4 {[%clk 0:00:07]}  Qa1+ {[%clk 0:00:36]} 44. Kh2 {[%clk 0:00:08]}  a3 {[%clk 0:00:35]} 45. Qb5+ {[%clk 0:00:08]}  Kd6 {[%clk 0:00:35]} 46. Qd5+ {[%clk 0:00:09]}  Ke7 {[%clk 0:00:36]} 47. c5 {[%clk 0:00:09]}  Qe5+ {[%clk 0:00:33]} 48. Qxe5+ {[%clk 0:00:09]}  fxe5 {[%clk 0:00:34]} 49. h5 {[%clk 0:00:09]}  a2 {[%clk 0:00:34]} 50. h6 {[%clk 0:00:09]}  a1=Q {[%clk 0:00:34]} 51. h7 {[%clk 0:00:10]}  e4 {[%clk 0:00:35]} 52. fxe4 {[%clk 0:00:10]}  Qh8 {[%clk 0:00:34]} 53. Kh3 {[%clk 0:00:11]}  Qxh7+ {[%clk 0:00:35]} 0-1


[Site "https://www.chess.com"]

[Event "Titled Tuesday Blitz September 21 2021"]
[White "Deac, Bogdan-Daniel"]
[Black "Holt, Conrad"]
[WhiteFideId "1226380"]
[BlackFideId "2034387"]
[WhiteElo "2605"]
[BlackElo "2586"]
[Result "1-0"]
[Round "05"]
[TimeControl "180+1"]
[Date "2021.09.21"]
[WhiteClock "0:00:04"]
[BlackClock "0:00:06"]

1. d4 {[%clk 0:03:00]}  d5 {[%clk 0:03:00]} 2. Nf3 {[%clk 0:02:58]}  Nf6 {[%clk 0:02:59]} 3. c4 {[%clk 0:02:57]}  c6 {[%clk 0:02:59]} 4. Qb3 {[%clk 0:02:54]}  dxc4 {[%clk 0:02:58]} 5. Qxc4 {[%clk 0:02:54]}  Bf5 {[%clk 0:02:59]} 6. g3 {[%clk 0:02:54]}  Nbd7 {[%clk 0:02:58]} 7. Bg2 {[%clk 0:02:54]}  e6 {[%clk 0:02:58]} 8. O-O {[%clk 0:02:53]}  Bd6 {[%clk 0:02:58]} 9. e3 {[%clk 0:02:49]}  O-O {[%clk 0:02:57]} 10. Rd1 {[%clk 0:02:44]}  Qe7 {[%clk 0:02:57]} 11. Nc3 {[%clk 0:02:37]}  e5 {[%clk 0:02:54]} 12. h3 {[%clk 0:02:27]}  e4 {[%clk 0:02:48]} 13. Nd2 {[%clk 0:02:14]}  h5 {[%clk 0:02:37]} 14. b3 {[%clk 0:01:56]}  Nb6 {[%clk 0:02:34]} 15. Qf1 {[%clk 0:01:53]}  Nbd5 {[%clk 0:02:32]} 16. Bb2 {[%clk 0:01:51]}  h4 {[%clk 0:01:57]} 17. g4 {[%clk 0:01:42]}  Bg6 {[%clk 0:01:53]} 18. g5 {[%clk 0:01:34]}  Nh7 {[%clk 0:01:47]} 19. Ncxe4 {[%clk 0:01:31]}  Bc7 {[%clk 0:01:42]} 20. Qe2 {[%clk 0:01:19]}  Nxg5 {[%clk 0:01:35]} 21. Nxg5 {[%clk 0:01:18]}  Qxg5 {[%clk 0:01:36]} 22. Qg4 {[%clk 0:01:02]}  Qh6 {[%clk 0:01:28]} 23. Nf3 {[%clk 0:01:00]}  Bh5 {[%clk 0:01:07]} 24. Qf5 {[%clk 0:00:44]}  Rfe8 {[%clk 0:00:50]} 25. Re1 {[%clk 0:00:32]}  Bg6 {[%clk 0:00:09]} 26. Qg5 {[%clk 0:00:26]}  Qxg5 {[%clk 0:00:09]} 27. Nxg5 {[%clk 0:00:27]}  Nb4 {[%clk 0:00:10]} 28. Red1 {[%clk 0:00:24]}  Bd8 {[%clk 0:00:04]} 29. Nf3 {[%clk 0:00:23]}  Bf6 {[%clk 0:00:04]} 30. Ne5 {[%clk 0:00:14]}  Bxe5 {[%clk 0:00:04]} 31. dxe5 {[%clk 0:00:14]}  Nd3 {[%clk 0:00:05]} 32. Bc3 {[%clk 0:00:15]}  Nxe5 {[%clk 0:00:05]} 33. Rd4 {[%clk 0:00:15]}  f6 {[%clk 0:00:04]} 34. Rxh4 {[%clk 0:00:10]}  Rad8 {[%clk 0:00:04]} 35. Rd4 {[%clk 0:00:10]}  b6 {[%clk 0:00:03]} 36. Rxd8 {[%clk 0:00:07]}  Rxd8 {[%clk 0:00:04]} 37. Bxe5 {[%clk 0:00:07]}  fxe5 {[%clk 0:00:05]} 38. Bxc6 {[%clk 0:00:08]}  Rd2 {[%clk 0:00:05]} 39. a4 {[%clk 0:00:08]}  Bf7 {[%clk 0:00:05]} 40. b4 {[%clk 0:00:08]}  Rb2 {[%clk 0:00:05]} 41. b5 {[%clk 0:00:08]}  Bb3 {[%clk 0:00:05]} 42. a5 {[%clk 0:00:07]}  Bc4 {[%clk 0:00:05]} 43. axb6 {[%clk 0:00:06]}  axb6 {[%clk 0:00:06]} 44. Ra6 {[%clk 0:00:05]}  Bxb5 {[%clk 0:00:05]} 45. Rxb6 {[%clk 0:00:05]}  Rb1+ {[%clk 0:00:06]} 46. Kh2 {[%clk 0:00:05]}  Bd3 {[%clk 0:00:07]} 47. Bd5+ {[%clk 0:00:04]}  Kh7 {[%clk 0:00:06]} 48. Re6 {[%clk 0:00:04]}  Rb2 {[%clk 0:00:04]} 49. Kg3 {[%clk 0:00:04]}  Rb5 {[%clk 0:00:04]} 50. Rxe5 {[%clk 0:00:04]}  Kh6 {[%clk 0:00:04]} 51. f4 {[%clk 0:00:04]}  g6 {[%clk 0:00:04]} 52. h4 {[%clk 0:00:04]}  Rb1 {[%clk 0:00:04]} 53. Bf3 {[%clk 0:00:03]}  Rg1+ {[%clk 0:00:03]} 54. Kf2 {[%clk 0:00:04]}  Rf1+ {[%clk 0:00:04]} 55. Kg2 {[%clk 0:00:04]}  Re1 {[%clk 0:00:04]} 56. h5 {[%clk 0:00:04]}  gxh5 {[%clk 0:00:04]} 57. Rxh5+ {[%clk 0:00:05]}  Kg7 {[%clk 0:00:04]} 58. Re5 {[%clk 0:00:06]}  Kf6 {[%clk 0:00:05]} 59. Kf2 {[%clk 0:00:06]}  Rf1+ {[%clk 0:00:04]} 60. Kg2 {[%clk 0:00:06]}  Re1 {[%clk 0:00:05]} 61. e4 {[%clk 0:00:07]}  Rb1 {[%clk 0:00:04]} 62. Kf2 {[%clk 0:00:06]}  Rb3 {[%clk 0:00:04]} 63. Ra5 {[%clk 0:00:05]}  Bc2 {[%clk 0:00:05]} 64. Ra6+ {[%clk 0:00:05]}  Ke7 {[%clk 0:00:05]} 65. e5 {[%clk 0:00:05]}  Bf5 {[%clk 0:00:05]} 66. Ra7+ {[%clk 0:00:05]}  Ke6 {[%clk 0:00:05]} 67. Ra6+ {[%clk 0:00:04]}  Ke7 {[%clk 0:00:05]} 68. Bd5 {[%clk 0:00:04]}  Rb2+ {[%clk 0:00:05]} 69. Kg3 {[%clk 0:00:04]}  Rd2 {[%clk 0:00:05]} 70. Ra7+ {[%clk 0:00:04]}  Ke8 {[%clk 0:00:05]} 71. Bf7+ {[%clk 0:00:04]}  Kf8 {[%clk 0:00:05]} 72. Kh4 {[%clk 0:00:04]}  Rg2 {[%clk 0:00:06]} 73. Bh5 {[%clk 0:00:04]}  Rg1 {[%clk 0:00:05]} 74. Rf7+ {[%clk 0:00:04]}  Kg8 {[%clk 0:00:06]} 75. Rxf5 {[%clk 0:00:05]}  Kg7 {[%clk 0:00:07]} 76. Rg5+ {[%clk 0:00:05]}  Kh6 {[%clk 0:00:06]} 77. Rxg1 {[%clk 0:00:04]} 1-0


[Site "https://www.chess.com"]

[Event "Titled Tuesday Blitz September 21 2021"]
[White "Djokic, Mihailo"]
[Black "Ovetchkin, Roman"]
[WhiteFideId "976440"]
[BlackFideId "4119991"]
[WhiteElo "2008"]
[BlackElo "2432"]
[Result "1-0"]
[Round "05"]
[TimeControl "180+1"]
[Date "2021.09.21"]
[WhiteClock "0:00:03"]
[BlackClock "0:00:15"]

1. e4 {[%clk 0:03:00]}  c6 {[%clk 0:02:59]} 2. d4 {[%clk 0:03:00]}  d5 {[%clk 0:02:58]} 3. e5 {[%clk 0:03:01]}  Bf5 {[%clk 0:02:57]} 4. h4 {[%clk 0:03:01]}  h6 {[%clk 0:02:57]} 5. g4 {[%clk 0:03:01]}  Bd7 {[%clk 0:02:57]} 6. Nc3 {[%clk 0:02:56]}  h5 {[%clk 0:02:55]} 7. g5 {[%clk 0:02:42]}  Bf5 {[%clk 0:02:55]} 8. Bd3 {[%clk 0:02:39]}  Qc8 {[%clk 0:02:49]} 9. Nge2 {[%clk 0:02:35]}  g6 {[%clk 0:02:45]} 10. Ng3 {[%clk 0:02:33]}  Bxd3 {[%clk 0:02:45]} 11. Qxd3 {[%clk 0:02:33]}  e6 {[%clk 0:02:46]} 12. Nce2 {[%clk 0:02:26]}  c5 {[%clk 0:02:43]} 13. c3 {[%clk 0:02:23]}  Ne7 {[%clk 0:02:43]} 14. Be3 {[%clk 0:02:13]}  Nd7 {[%clk 0:02:41]} 15. f4 {[%clk 0:02:10]}  c4 {[%clk 0:02:34]} 16. Qc2 {[%clk 0:02:09]}  Nf5 {[%clk 0:02:19]} 17. Nxf5 {[%clk 0:02:08]}  exf5 {[%clk 0:02:19]} 18. Kf2 {[%clk 0:02:02]}  Be7 {[%clk 0:02:19]} 19. b3 {[%clk 0:01:53]}  b5 {[%clk 0:02:18]} 20. a4 {[%clk 0:01:47]}  a6 {[%clk 0:02:18]} 21. b4 {[%clk 0:01:44]}  Nf8 {[%clk 0:01:55]} 22. Ra2 {[%clk 0:01:39]}  Ne6 {[%clk 0:01:53]} 23. Rha1 {[%clk 0:01:38]}  Rb8 {[%clk 0:01:53]} 24. axb5 {[%clk 0:01:25]}  axb5 {[%clk 0:01:53]} 25. Ra7 {[%clk 0:01:26]}  Qd8 {[%clk 0:01:47]} 26. R1a5 {[%clk 0:01:19]}  O-O {[%clk 0:01:46]} 27. Ng3 {[%clk 0:01:13]}  Qe8 {[%clk 0:01:37]} 28. Nxf5 {[%clk 0:00:43]}  gxf5 {[%clk 0:01:36]} 29. Qxf5 {[%clk 0:00:43]}  Bd8 {[%clk 0:01:34]} 30. Ra3 {[%clk 0:00:31]}  Bb6 {[%clk 0:01:34]} 31. Qf6 {[%clk 0:00:19]}  Bxa7 {[%clk 0:01:33]} 32. Rxa7 {[%clk 0:00:19]}  Ra8 {[%clk 0:01:24]} 33. Re7 {[%clk 0:00:16]}  Ra2+ {[%clk 0:01:00]} 34. Kf3 {[%clk 0:00:15]}  Qc8 {[%clk 0:00:52]} 35. f5 {[%clk 0:00:11]}  Ng7 {[%clk 0:00:47]} 36. e6 {[%clk 0:00:11]}  Nxe6 {[%clk 0:00:18]} 37. g6 {[%clk 0:00:05]}  fxg6 {[%clk 0:00:15]} 38. Qxg6+ {[%clk 0:00:03]} 1-0


[Site "https://www.chess.com"]

[Event "Titled Tuesday Blitz September 21 2021"]
[White "Dobrov, Vladimir"]
[Black "Ghimpu, Samuel-Timotei"]
[WhiteFideId "4136594"]
[BlackFideId "1238175"]
[WhiteElo "2614"]
[BlackElo "2012"]
[Result "1-0"]
[Round "05"]
[TimeControl "180+1"]
[Date "2021.09.21"]
[WhiteClock "0:00:01"]
[BlackClock "0:00:13"]

1. d4 {[%clk 0:02:45]}  Nf6 {[%clk 0:02:58]} 2. c4 {[%clk 0:02:44]}  g6 {[%clk 0:02:58]} 3. Nc3 {[%clk 0:02:43]}  d5 {[%clk 0:02:58]} 4. cxd5 {[%clk 0:02:35]}  Nxd5 {[%clk 0:02:59]} 5. e4 {[%clk 0:02:35]}  Nxc3 {[%clk 0:02:59]} 6. bxc3 {[%clk 0:02:36]}  Bg7 {[%clk 0:02:59]} 7. Nf3 {[%clk 0:02:36]}  c5 {[%clk 0:02:59]} 8. Rb1 {[%clk 0:02:37]}  O-O {[%clk 0:02:58]} 9. Be2 {[%clk 0:02:36]}  cxd4 {[%clk 0:02:58]} 10. cxd4 {[%clk 0:02:36]}  Qa5+ {[%clk 0:02:59]} 11. Qd2 {[%clk 0:02:33]}  Qxd2+ {[%clk 0:02:57]} 12. Bxd2 {[%clk 0:02:34]}  e6 {[%clk 0:02:57]} 13. Be3 {[%clk 0:02:28]}  b6 {[%clk 0:02:56]} 14. Ne5 {[%clk 0:01:54]}  Bb7 {[%clk 0:02:37]} 15. f3 {[%clk 0:01:52]}  Nc6 {[%clk 0:02:38]} 16. Nxc6 {[%clk 0:01:48]}  Bxc6 {[%clk 0:02:38]} 17. Rc1 {[%clk 0:01:45]}  Bb7 {[%clk 0:02:29]} 18. Rc7 {[%clk 0:01:43]}  Rab8 {[%clk 0:02:29]} 19. Kf2 {[%clk 0:01:36]}  Rfd8 {[%clk 0:02:26]} 20. Rd1 {[%clk 0:01:21]}  Bf8 {[%clk 0:02:06]} 21. e5 {[%clk 0:01:04]}  Bd5 {[%clk 0:02:00]} 22. a4 {[%clk 0:01:01]}  Bb3 {[%clk 0:01:47]} 23. Ra1 {[%clk 0:00:57]}  a5 {[%clk 0:01:45]} 24. Bb5 {[%clk 0:00:56]}  Bd5 {[%clk 0:01:37]} 25. h4 {[%clk 0:00:51]}  h6 {[%clk 0:01:32]} 26. g4 {[%clk 0:00:48]}  Kg7 {[%clk 0:01:31]} 27. h5 {[%clk 0:00:46]}  g5 {[%clk 0:01:27]} 28. f4 {[%clk 0:00:39]}  gxf4 {[%clk 0:01:28]} 29. Bxf4 {[%clk 0:00:39]}  Rb7 {[%clk 0:01:04]} 30. Rac1 {[%clk 0:00:39]}  Ba3 {[%clk 0:00:58]} 31. R1c2 {[%clk 0:00:37]}  Be4 {[%clk 0:00:51]} 32. Rxb7 {[%clk 0:00:18]}  Bxc2 {[%clk 0:00:51]} 33. Be3 {[%clk 0:00:06]}  Bb2 {[%clk 0:00:48]} 34. Rd7 {[%clk 0:00:02]}  Rc8 {[%clk 0:00:36]} 35. Rd6 {[%clk 0:00:02]}  Be4 {[%clk 0:00:23]} 36. Rxb6 {[%clk 0:00:02]}  Rc2+ {[%clk 0:00:22]} 37. Kg3 {[%clk 0:00:03]}  Bd5 {[%clk 0:00:17]} 38. Bf1 {[%clk 0:00:02]}  Bc3 {[%clk 0:00:15]} 39. Kf4 {[%clk 0:00:03]}  Bb4 {[%clk 0:00:14]} 40. Rb5 {[%clk 0:00:02]}  Ra2 {[%clk 0:00:13]} 41. g5 {[%clk 0:00:02]}  hxg5+ {[%clk 0:00:13]} 42. Kxg5 {[%clk 0:00:03]}  Rxa4 {[%clk 0:00:13]} 43. h6+ {[%clk 0:00:03]}  Kh7 {[%clk 0:00:14]} 44. Bd3+ {[%clk 0:00:04]}  Kg8 {[%clk 0:00:11]} 45. Rb8+ {[%clk 0:00:04]}  Bf8 {[%clk 0:00:12]} 46. h7+ {[%clk 0:00:02]}  Kg7 {[%clk 0:00:13]} 47. Rxf8 {[%clk 0:00:01]} 1-0


[Site "https://www.chess.com"]

[Event "Titled Tuesday Blitz September 21 2021"]
[White "Dudzinski, Pawel"]
[Black "Djordjevic, Vuk"]
[WhiteFideId "1117890"]
[BlackFideId "902098"]
[WhiteElo "2193"]
[BlackElo "2463"]
[Result "0-1"]
[Round "05"]
[TimeControl "180+1"]
[Date "2021.09.21"]
[WhiteClock "0:00:08"]
[BlackClock "0:01:24"]

1. e4 {[%clk 0:02:43]}  d5 {[%clk 0:02:59]} 2. exd5 {[%clk 0:02:42]}  Qxd5 {[%clk 0:03:00]} 3. Nc3 {[%clk 0:02:43]}  Qd6 {[%clk 0:03:00]} 4. d4 {[%clk 0:02:43]}  Nf6 {[%clk 0:03:01]} 5. Nge2 {[%clk 0:02:43]}  c6 {[%clk 0:03:00]} 6. Bf4 {[%clk 0:02:44]}  Qd8 {[%clk 0:03:01]} 7. Ng3 {[%clk 0:02:44]}  g6 {[%clk 0:02:57]} 8. Bc4 {[%clk 0:02:44]}  Bg7 {[%clk 0:02:54]} 9. O-O {[%clk 0:02:30]}  Nbd7 {[%clk 0:02:53]} 10. Bb3 {[%clk 0:02:24]}  Nb6 {[%clk 0:02:52]} 11. Re1 {[%clk 0:02:21]}  O-O {[%clk 0:02:52]} 12. Qd2 {[%clk 0:02:18]}  Nfd5 {[%clk 0:02:40]} 13. Nxd5 {[%clk 0:02:18]}  Nxd5 {[%clk 0:02:39]} 14. Bh6 {[%clk 0:02:14]}  Qd6 {[%clk 0:02:34]} 15. Bxg7 {[%clk 0:02:08]}  Kxg7 {[%clk 0:02:34]} 16. Bxd5 {[%clk 0:01:58]}  cxd5 {[%clk 0:02:28]} 17. Qe3 {[%clk 0:01:59]}  e6 {[%clk 0:02:23]} 18. Qe5+ {[%clk 0:01:59]}  Qxe5 {[%clk 0:02:22]} 19. dxe5 {[%clk 0:01:55]}  b5 {[%clk 0:02:20]} 20. c3 {[%clk 0:01:51]}  a5 {[%clk 0:02:19]} 21. a3 {[%clk 0:01:49]}  Bd7 {[%clk 0:02:13]} 22. Ne2 {[%clk 0:01:50]}  Rfc8 {[%clk 0:02:12]} 23. Nd4 {[%clk 0:01:50]}  Rc4 {[%clk 0:02:11]} 24. Re3 {[%clk 0:01:43]}  Rac8 {[%clk 0:02:04]} 25. Nc2 {[%clk 0:01:34]}  b4 {[%clk 0:01:55]} 26. axb4 {[%clk 0:01:28]}  axb4 {[%clk 0:01:56]} 27. Nxb4 {[%clk 0:01:20]}  d4 {[%clk 0:01:55]} 28. Rd3 {[%clk 0:01:18]}  dxc3 {[%clk 0:01:55]} 29. bxc3 {[%clk 0:01:09]}  Bb5 {[%clk 0:01:55]} 30. Re3 {[%clk 0:00:59]}  Rxc3 {[%clk 0:01:52]} 31. Rxc3 {[%clk 0:00:56]}  Rxc3 {[%clk 0:01:52]} 32. Re1 {[%clk 0:00:52]}  g5 {[%clk 0:01:50]} 33. h3 {[%clk 0:00:51]}  h5 {[%clk 0:01:41]} 34. Re3 {[%clk 0:00:19]}  Rc1+ {[%clk 0:01:36]} 35. Kh2 {[%clk 0:00:19]}  Kg6 {[%clk 0:01:36]} 36. g4 {[%clk 0:00:19]}  hxg4 {[%clk 0:01:34]} 37. hxg4 {[%clk 0:00:19]}  Rc4 {[%clk 0:01:34]} 38. Nd3 {[%clk 0:00:13]}  Rxg4 {[%clk 0:01:34]} 39. Nc5 {[%clk 0:00:13]}  Bc6 {[%clk 0:01:31]} 40. f3 {[%clk 0:00:12]}  Rc4 {[%clk 0:01:29]} 41. Nd3 {[%clk 0:00:12]}  Kf5 {[%clk 0:01:29]} 42. Kg3 {[%clk 0:00:11]}  Rc3 {[%clk 0:01:28]} 43. Kf2 {[%clk 0:00:10]}  Bb5 {[%clk 0:01:25]} 44. Ne1 {[%clk 0:00:08]}  Rxe3 {[%clk 0:01:25]} 45. Kxe3 {[%clk 0:00:09]}  Kxe5 {[%clk 0:01:25]} 46. Ng2 {[%clk 0:00:10]}  Kf5 {[%clk 0:01:24]} 47. f4 {[%clk 0:00:10]}  Bc6 {[%clk 0:01:24]} 48. Ne1 {[%clk 0:00:08]}  gxf4+ {[%clk 0:01:24]} 49. Kf2 {[%clk 0:00:08]}  e5 {[%clk 0:01:24]} 0-1


[Site "https://www.chess.com"]

[Event "Titled Tuesday Blitz September 21 2021"]
[White "Erdogmus, Yagiz Kaan"]
[Black "Tristan, Leonardo"]
[WhiteFideId "44599790"]
[BlackFideId "113816"]
[WhiteElo "1783"]
[BlackElo "2404"]
[Result "0-1"]
[Round "05"]
[TimeControl "180+1"]
[Date "2021.09.21"]
[WhiteClock "0:00:19"]
[BlackClock "0:01:37"]

1. e4 {[%clk 0:03:00]}  d5 {[%clk 0:03:00]} 2. exd5 {[%clk 0:03:00]}  Qxd5 {[%clk 0:03:01]} 3. Nc3 {[%clk 0:02:59]}  Qa5 {[%clk 0:03:01]} 4. Bc4 {[%clk 0:02:59]}  Nf6 {[%clk 0:03:01]} 5. Qe2 {[%clk 0:02:59]}  Nc6 {[%clk 0:02:59]} 6. Nf3 {[%clk 0:02:51]}  Bg4 {[%clk 0:02:52]} 7. Bb5 {[%clk 0:02:37]}  Bd7 {[%clk 0:02:52]} 8. d4 {[%clk 0:02:23]}  a6 {[%clk 0:02:51]} 9. Bc4 {[%clk 0:02:07]}  Bg4 {[%clk 0:02:47]} 10. Be3 {[%clk 0:02:01]}  e6 {[%clk 0:02:37]} 11. d5 {[%clk 0:01:31]}  Bb4 {[%clk 0:02:13]} 12. dxc6 {[%clk 0:01:09]}  Bxc3+ {[%clk 0:02:12]} 13. Kf1 {[%clk 0:01:06]}  b5 {[%clk 0:02:03]} 14. Bd3 {[%clk 0:00:45]}  Bxb2 {[%clk 0:01:57]} 15. Bd2 {[%clk 0:00:40]}  Bc3 {[%clk 0:01:54]} 16. Bxc3 {[%clk 0:00:40]}  Qxc3 {[%clk 0:01:54]} 17. Qe5 {[%clk 0:00:41]}  Qxc6 {[%clk 0:01:50]} 18. Nd4 {[%clk 0:00:38]}  Qc3 {[%clk 0:01:42]} 19. Rb1 {[%clk 0:00:28]}  Rd8 {[%clk 0:01:39]} 20. Nf3 {[%clk 0:00:19]}  Rxd3 {[%clk 0:01:37]} 0-1


[Site "https://www.chess.com"]

[Event "Titled Tuesday Blitz September 21 2021"]
[White "Erzhanov, Arman"]
[Black "AleksanderHnydiuk"]
[WhiteFideId "4138821"]
[WhiteElo "2175"]
[BlackElo "2586"]
[Result "0-1"]
[Round "05"]
[TimeControl "180+1"]
[Date "2021.09.21"]
[WhiteClock "0:00:03"]
[BlackClock "0:00:58"]

1. e4 {[%clk 0:00:14]}  Nf6 {[%clk 0:02:58]} 2. Nc3 {[%clk 0:00:13]}  d5 {[%clk 0:02:58]} 3. e5 {[%clk 0:00:13]}  d4 {[%clk 0:02:58]} 4. exf6 {[%clk 0:00:13]}  dxc3 {[%clk 0:02:58]} 5. fxg7 {[%clk 0:00:14]}  cxd2+ {[%clk 0:02:58]} 6. Qxd2 {[%clk 0:00:15]}  Qxd2+ {[%clk 0:02:57]} 7. Bxd2 {[%clk 0:00:15]}  Bxg7 {[%clk 0:02:58]} 8. O-O-O {[%clk 0:00:16]}  Be6 {[%clk 0:02:55]} 9. Ne2 {[%clk 0:00:16]}  Nc6 {[%clk 0:02:45]} 10. Bc3 {[%clk 0:00:17]}  Bxc3 {[%clk 0:02:42]} 11. Nxc3 {[%clk 0:00:16]}  a6 {[%clk 0:02:40]} 12. Be2 {[%clk 0:00:14]}  Rd8 {[%clk 0:02:38]} 13. Bf3 {[%clk 0:00:14]}  O-O {[%clk 0:02:30]} 14. Bxc6 {[%clk 0:00:14]}  bxc6 {[%clk 0:02:31]} 15. Rxd8 {[%clk 0:00:14]}  Rxd8 {[%clk 0:02:30]} 16. Rd1 {[%clk 0:00:15]}  Rd6 {[%clk 0:02:29]} 17. Rd3 {[%clk 0:00:14]}  Bf5 {[%clk 0:02:26]} 18. Rg3+ {[%clk 0:00:13]}  Kf8 {[%clk 0:02:26]} 19. Rf3 {[%clk 0:00:12]}  Bg6 {[%clk 0:02:23]} 20. Re3 {[%clk 0:00:12]}  Ke8 {[%clk 0:02:19]} 21. Ne4 {[%clk 0:00:12]}  Rd4 {[%clk 0:02:18]} 22. Nc5 {[%clk 0:00:11]}  Rc4 {[%clk 0:02:17]} 23. Nd3 {[%clk 0:00:07]}  f6 {[%clk 0:02:15]} 24. b3 {[%clk 0:00:08]}  Rh4 {[%clk 0:02:14]} 25. h3 {[%clk 0:00:07]}  a5 {[%clk 0:02:11]} 26. a4 {[%clk 0:00:06]}  Rd4 {[%clk 0:02:04]} 27. Kd2 {[%clk 0:00:07]}  Kd7 {[%clk 0:01:52]} 28. Kc3 {[%clk 0:00:07]}  Rd5 {[%clk 0:01:51]} 29. Nf4 {[%clk 0:00:06]}  Rc5+ {[%clk 0:01:51]} 30. Kd4 {[%clk 0:00:04]}  Rxc2 {[%clk 0:01:46]} 31. Nxg6 {[%clk 0:00:02]}  hxg6 {[%clk 0:01:47]} 32. Rd3 {[%clk 0:00:02]}  e5+ {[%clk 0:01:41]} 33. Ke3+ {[%clk 0:00:02]}  Ke7 {[%clk 0:01:41]} 34. h4 {[%clk 0:00:03]}  c5 {[%clk 0:01:37]} 35. g4 {[%clk 0:00:04]}  c4 {[%clk 0:01:34]} 36. Rd5 {[%clk 0:00:04]}  cxb3 {[%clk 0:01:26]} 37. Rxa5 {[%clk 0:00:05]}  c5 {[%clk 0:01:24]} 38. Rb5 {[%clk 0:00:03]}  c4 {[%clk 0:01:24]} 39. Rb4 {[%clk 0:00:03]}  b2 {[%clk 0:01:20]} 40. a5 {[%clk 0:00:03]}  c3 {[%clk 0:01:18]} 41. a6 {[%clk 0:00:04]}  Rc1 {[%clk 0:01:18]} 42. a7 {[%clk 0:00:04]}  Ra1 {[%clk 0:01:18]} 43. Kd3 {[%clk 0:00:04]}  Rxa7 {[%clk 0:01:15]} 44. Kxc3 {[%clk 0:00:05]}  Ra3+ {[%clk 0:01:13]} 45. Kxb2 {[%clk 0:00:04]}  Rf3 {[%clk 0:01:13]} 46. Kc2 {[%clk 0:00:02]}  Rxf2+ {[%clk 0:01:12]} 47. Kd3 {[%clk 0:00:03]}  Rh2 {[%clk 0:01:10]} 48. g5 {[%clk 0:00:03]}  f5 {[%clk 0:01:08]} 49. Rb7+ {[%clk 0:00:03]}  Ke6 {[%clk 0:01:08]} 50. Rb6+ {[%clk 0:00:03]}  Kd5 {[%clk 0:01:08]} 51. Rxg6 {[%clk 0:00:03]}  Rxh4 {[%clk 0:01:07]} 52. Rf6 {[%clk 0:00:03]}  Rh3+ {[%clk 0:01:06]} 53. Ke2 {[%clk 0:00:04]}  Ke4 {[%clk 0:01:06]} 54. g6 {[%clk 0:00:04]}  Rg3 {[%clk 0:01:07]} 55. Kf2 {[%clk 0:00:04]}  f4 {[%clk 0:01:07]} 56. Re6 {[%clk 0:00:03]}  Kf5 {[%clk 0:01:05]} 57. Rc6 {[%clk 0:00:01]}  Rxg6 {[%clk 0:01:05]} 58. Rc8 {[%clk 0:00:01]}  Ra6 {[%clk 0:01:03]} 59. Rf8+ {[%clk 0:00:01]}  Ke4 {[%clk 0:01:03]} 60. Rb8 {[%clk 0:00:02]}  Ra2+ {[%clk 0:01:03]} 61. Ke1 {[%clk 0:00:03]}  Kf3 {[%clk 0:01:00]} 62. Rb3+ {[%clk 0:00:03]}  Kg4 {[%clk 0:01:00]} 63. Rb8 {[%clk 0:00:03]}  e4 {[%clk 0:00:59]} 64. Rg8+ {[%clk 0:00:04]}  Kf3 {[%clk 0:00:58]} 65. Rb8 {[%clk 0:00:04]}  Ra1+ {[%clk 0:00:58]} 66. Kd2 {[%clk 0:00:03]}  e3+ {[%clk 0:00:59]} 67. Kd3 {[%clk 0:00:04]}  Rd1+ {[%clk 0:00:58]} 68. Kc2 {[%clk 0:00:03]}  e2 {[%clk 0:00:58]} 69. Rb3+ {[%clk 0:00:03]}  Kf2 {[%clk 0:00:58]} 0-1


[Site "https://www.chess.com"]

[Event "Titled Tuesday Blitz September 21 2021"]
[White "Herrera Reyes, Jose Antonio"]
[Black "Makhnev, Denis"]
[WhiteFideId "2274914"]
[BlackFideId "13707647"]
[WhiteElo "2361"]
[BlackElo "2537"]
[Result "1-0"]
[Round "05"]
[TimeControl "180+1"]
[Date "2021.09.21"]
[WhiteClock "0:03:00"]
[BlackClock "0:01:50"]

1. Nf3 {[%clk 0:03:00]}  Nf6 {[%clk 0:02:57]} 2. g3 {[%clk 0:03:00]}  g6 {[%clk 0:02:57]} 3. Bg2 {[%clk 0:03:01]}  Bg7 {[%clk 0:02:57]} 4. d3 {[%clk 0:03:02]}  O-O {[%clk 0:02:57]} 5. Nc3 {[%clk 0:03:02]}  c5 {[%clk 0:02:58]} 6. h4 {[%clk 0:03:02]}  Nc6 {[%clk 0:02:58]} 7. h5 {[%clk 0:03:03]}  Nxh5 {[%clk 0:02:57]} 8. Bg5 {[%clk 0:03:02]}  d5 {[%clk 0:02:48]} 9. Qd2 {[%clk 0:03:01]}  Bg4 {[%clk 0:02:47]} 10. Bh6 {[%clk 0:03:00]}  Bxf3 {[%clk 0:02:06]} 11. Bxf3 {[%clk 0:02:59]}  Nf6 {[%clk 0:02:06]} 12. Bxg7 {[%clk 0:02:59]}  Kxg7 {[%clk 0:02:06]} 13. Qh6+ {[%clk 0:02:59]}  Kh8 {[%clk 0:01:50]} 14. Nxd5 {[%clk 0:03:00]} 1-0


[Site "https://www.chess.com"]